[Event "*** Titled Tuesday Blitz"]
[Site "Chess.com"]
[Date "2019.07.02"]
[Round "10"]
[White "TregubovP"]
[Black "Vegan4future"]
[Result "0-1"]
[WhiteElo "2524"]
[BlackElo "2436"]
[TimeControl "180+2"]
[EndTime "15:12:18 PDT"]
[Termination "Vegan4future won by resignation"]

1. e4 {[%clk 0:03:01.9]} 1... e5 {[%clk 0:02:50.9]} 2. Nf3 {[%clk 0:03:02.4]}
2... d6 {[%clk 0:02:52.5]} 3. d4 {[%clk 0:02:58.8]} 3... exd4 {[%clk 0:02:54.4]}
4. Nxd4 {[%clk 0:02:59.5]} 4... Nf6 {[%clk 0:02:55.9]} 5. Nc3 {[%clk 0:03:00.1]}
5... Be7 {[%clk 0:02:57.2]} 6. Bc4 {[%clk 0:02:59]} 6... O-O {[%clk 0:02:58.2]}
7. O-O {[%clk 0:03:00]} 7... Re8 {[%clk 0:02:56.1]} 8. h3 {[%clk 0:02:57.6]}
8... Bf8 {[%clk 0:02:47.7]} 9. Re1 {[%clk 0:02:58.6]} 9... Nbd7 {[%clk
0:02:45.3]} 10. Bg5 {[%clk 0:02:49.3]} 10... c6 {[%clk 0:02:43.3]} 11. a4 {[%clk
0:02:48.6]} 11... Ne5 {[%clk 0:02:40.1]} 12. Bb3 {[%clk 0:02:44.2]} 12... Ng6
{[%clk 0:02:39.4]} 13. Qf3 {[%clk 0:02:31]} 13... Be7 {[%clk 0:02:35]} 14. Nf5
{[%clk 0:02:28.6]} 14... Ne5 {[%clk 0:02:35.1]} 15. Nxe7+ {[%clk 0:02:28.2]}
15... Qxe7 {[%clk 0:02:35]} 16. Qg3 {[%clk 0:02:18.1]} 16... Ng6 {[%clk
0:01:56.2]} 17. Rad1 {[%clk 0:02:15.7]} 17... d5 {[%clk 0:01:36.1]} 18. e5
{[%clk 0:01:40.2]} 18... Nxe5 {[%clk 0:01:10.8]} 19. Bxf6 {[%clk 0:01:23.5]}
19... Qxf6 {[%clk 0:01:07.2]} 20. f4 {[%clk 0:01:24.6]} 20... Bf5 {[%clk
0:00:43.7]} 21. Rxe5 {[%clk 0:01:15.1]} 21... Rxe5 {[%clk 0:00:44.2]} 22. fxe5
{[%clk 0:01:16.3]} 22... Qh6 {[%clk 0:00:46.1]} 23. Ne2 {[%clk 0:01:14.5]} 23...
Re8 {[%clk 0:00:46.2]} 24. Nd4 {[%clk 0:01:09.7]} 24... Be4 {[%clk 0:00:44]} 25.
c3 {[%clk 0:01:08.6]} 25... Qh5 {[%clk 0:00:40.1]} 26. Bc2 {[%clk 0:01:06.1]}
26... Bxc2 {[%clk 0:00:29.3]} 27. Nxc2 {[%clk 0:01:06.9]} 27... Qxd1+ {[%clk
0:00:30.2]} 0-1

[Event "*** Titled Tuesday Blitz"]
[Site "Chess.com"]
[Date "2019.07.02"]
[Round "10"]
[White "Komissarov_alex"]
[Black "Synctel"]
[Result "1-0"]
[WhiteElo "2120"]
[BlackElo "1993"]
[TimeControl "180+2"]
[EndTime "15:12:20 PDT"]
[Termination "Komissarov_alex won by resignation"]

1. e4 {[%clk 0:03:01.9]} 1... e6 {[%clk 0:03:00.7]} 2. d4 {[%clk 0:03:01.1]}
2... d5 {[%clk 0:03:02]} 3. Nc3 {[%clk 0:02:59.4]} 3... Nf6 {[%clk 0:03:00.6]}
4. Bg5 {[%clk 0:02:56.7]} 4... Bb4 {[%clk 0:03:00.6]} 5. e5 {[%clk 0:02:54.8]}
5... h6 {[%clk 0:03:00.4]} 6. Bd2 {[%clk 0:02:56.1]} 6... Bxc3 {[%clk
0:03:00.7]} 7. bxc3 {[%clk 0:02:56.4]} 7... Ne4 {[%clk 0:03:02.3]} 8. Qg4 {[%clk
0:02:56.2]} 8... g6 {[%clk 0:03:03.4]} 9. Bd3 {[%clk 0:02:55.3]} 9... Nxd2
{[%clk 0:03:04.7]} 10. Kxd2 {[%clk 0:02:55.9]} 10... c5 {[%clk 0:03:06.6]} 11.
h4 {[%clk 0:02:53.7]} 11... Nc6 {[%clk 0:03:06.8]} 12. Rh3 {[%clk 0:02:51.4]}
12... Bd7 {[%clk 0:03:00.6]} 13. Rf3 {[%clk 0:02:34.4]} 13... Qc7 {[%clk
0:01:38.7]} 14. Rxf7 {[%clk 0:02:12.1]} 14... O-O-O {[%clk 0:01:32.6]} 15. Nf3
{[%clk 0:01:45.6]} 15... cxd4 {[%clk 0:01:10.3]} 16. cxd4 {[%clk 0:01:43.7]}
16... Nb4 {[%clk 0:00:39.4]} 17. Qxg6 {[%clk 0:01:17]} 17... Rhg8 {[%clk
0:00:30.8]} 18. Rg7 {[%clk 0:01:15.2]} 18... Rxg7 {[%clk 0:00:29.2]} 19. Qxg7
{[%clk 0:01:15.2]} 19... Nxd3 {[%clk 0:00:30.9]} 20. cxd3 {[%clk 0:01:10.2]}
20... Qa5+ {[%clk 0:00:30.2]} 21. Ke3 {[%clk 0:01:07.2]} 21... Qc3 {[%clk
0:00:25.7]} 22. Rd1 {[%clk 0:01:06.2]} 22... Ba4 {[%clk 0:00:22.1]} 23. Rd2
{[%clk 0:01:02.1]} 1-0

[Event "*** Titled Tuesday Blitz"]
[Site "Chess.com"]
[Date "2019.07.02"]
[Round "10"]
[White "jk13"]
[Black "tigra"]
[Result "1-0"]
[WhiteElo "2610"]
[BlackElo "2709"]
[TimeControl "180+2"]
[EndTime "15:12:48 PDT"]
[Termination "jk13 won by resignation"]

1. e4 {[%clk 0:03:01.9]} 1... g6 {[%clk 0:01:09.1]} 2. d4 {[%clk 0:03:02.4]}
2... Bg7 {[%clk 0:01:11]} 3. Nc3 {[%clk 0:03:01.9]} 3... d6 {[%clk 0:01:12.9]}
4. Nf3 {[%clk 0:02:59.9]} 4... a6 {[%clk 0:01:13.8]} 5. a4 {[%clk 0:03:00.3]}
5... b6 {[%clk 0:01:14.6]} 6. Be3 {[%clk 0:02:57.9]} 6... Bb7 {[%clk 0:01:14.4]}
7. h3 {[%clk 0:02:58.2]} 7... e6 {[%clk 0:01:15.5]} 8. Bd3 {[%clk 0:02:58.5]}
8... Ne7 {[%clk 0:01:16.6]} 9. O-O {[%clk 0:02:58.7]} 9... O-O {[%clk
0:01:17.3]} 10. Qd2 {[%clk 0:02:59.8]} 10... Nd7 {[%clk 0:01:18.2]} 11. Bh6
{[%clk 0:03:00.8]} 11... c5 {[%clk 0:01:18.8]} 12. Bxg7 {[%clk 0:03:01.8]} 12...
Kxg7 {[%clk 0:01:20.7]} 13. Be2 {[%clk 0:02:48.4]} 13... Qc7 {[%clk 0:01:19.6]}
14. Rad1 {[%clk 0:02:48.8]} 14... Rfd8 {[%clk 0:01:19.9]} 15. Qg5 {[%clk
0:02:35.4]} 15... Ng8 {[%clk 0:01:20]} 16. Qg3 {[%clk 0:02:29]} 16... Ngf6
{[%clk 0:01:15.9]} 17. e5 {[%clk 0:02:20]} 17... dxe5 {[%clk 0:00:55.1]} 18.
dxe5 {[%clk 0:02:20.8]} 18... Nh5 {[%clk 0:00:55.8]} 19. Qg5 {[%clk 0:02:14]}
19... h6 {[%clk 0:00:53.1]} 20. Qe3 {[%clk 0:02:15]} 20... g5 {[%clk 0:00:42.3]}
21. Nxg5 {[%clk 0:01:57.1]} 21... Qxe5 {[%clk 0:00:40.5]} 22. Rxd7 {[%clk
0:01:35.8]} 22... Qxg5 {[%clk 0:00:40.6]} 23. Qxg5+ {[%clk 0:01:34.7]} 23...
hxg5 {[%clk 0:00:42.5]} 24. Rxb7 {[%clk 0:01:34.9]} 24... Nf4 {[%clk 0:00:44]}
25. Bf3 {[%clk 0:01:34.6]} 25... Rd2 {[%clk 0:00:43.4]} 26. Ne4 {[%clk
0:01:29.7]} 26... Rxc2 {[%clk 0:00:43.4]} 27. Nxg5 {[%clk 0:01:30.9]} 27... Kg6
{[%clk 0:00:24.5]} 28. Be4+ {[%clk 0:01:27.6]} 28... Kxg5 {[%clk 0:00:22.9]} 29.
Bxc2 {[%clk 0:01:28.7]} 29... Kf6 {[%clk 0:00:23.2]} 30. Rxb6 {[%clk 0:01:28.1]}
30... Rg8 {[%clk 0:00:22.4]} 31. g3 {[%clk 0:01:20.3]} 31... Nxh3+ {[%clk
0:00:24.3]} 32. Kh2 {[%clk 0:01:18.2]} 32... Rh8 {[%clk 0:00:21]} 33. Kg2 {[%clk
0:01:18.1]} 33... Ng5 {[%clk 0:00:21.2]} 34. f4 {[%clk 0:01:18.3]} 34... Nh7
{[%clk 0:00:21.7]} 35. Rh1 {[%clk 0:01:18.7]} 35... Rg8 {[%clk 0:00:21.9]} 1-0

[Event "*** Titled Tuesday Blitz"]
[Site "Chess.com"]
[Date "2019.07.02"]
[Round "10"]
[White "Mazanchenko_Dmitry"]
[Black "Bad4life"]
[Result "0-1"]
[WhiteElo "2198"]
[BlackElo "2350"]
[TimeControl "180+2"]
[EndTime "15:12:48 PDT"]
[Termination "Bad4life won on time"]

1. d4 {[%clk 0:02:14.7]} 1... Nf6 {[%clk 0:02:28.4]} 2. Nf3 {[%clk 0:02:10.4]}
2... e6 {[%clk 0:02:28.6]} 3. Nbd2 {[%clk 0:02:09]} 3... c5 {[%clk 0:02:26.5]}
4. c3 {[%clk 0:02:06.9]} 4... b6 {[%clk 0:02:27.7]} 5. e4 {[%clk 0:02:07.5]}
5... d5 {[%clk 0:02:21.8]} 6. e5 {[%clk 0:02:05.8]} 6... Nfd7 {[%clk 0:02:22.5]}
7. Bd3 {[%clk 0:02:06.2]} 7... Ba6 {[%clk 0:02:22.9]} 8. Bc2 {[%clk 0:01:56.7]}
8... Qc8 {[%clk 0:02:17.6]} 9. a4 {[%clk 0:01:54.6]} 9... Nc6 {[%clk 0:02:16.5]}
10. a5 {[%clk 0:01:38.1]} 10... cxd4 {[%clk 0:02:07.9]} 11. cxd4 {[%clk
0:01:29.7]} 11... Nxa5 {[%clk 0:02:08.3]} 12. b4 {[%clk 0:01:10.7]} 12... Bxb4
{[%clk 0:02:08.2]} 13. Ba3 {[%clk 0:01:02.1]} 13... Qc3 {[%clk 0:01:55.6]} 14.
Bxb4 {[%clk 0:00:50.1]} 14... Qxb4 {[%clk 0:01:56.6]} 15. Ba4 {[%clk 0:00:47.1]}
15... Rc8 {[%clk 0:01:24.2]} 16. Rb1 {[%clk 0:00:19.9]} 16... Qc3 {[%clk
0:01:24]} 17. Bxd7+ {[%clk 0:00:12]} 17... Kxd7 {[%clk 0:01:22.7]} 18. Ng1
{[%clk 0:00:10.2]} 18... Qxd4 {[%clk 0:01:12.7]} 19. Ne2 {[%clk 0:00:08.9]}
19... Qxe5 {[%clk 0:01:12]} 20. Nf3 {[%clk 0:00:07.9]} 20... Qxe2+ {[%clk
0:01:10]} 21. Qxe2 {[%clk 0:00:09.2]} 21... Bxe2 {[%clk 0:01:11.6]} 22. Kxe2
{[%clk 0:00:11.1]} 22... Rc2+ {[%clk 0:01:12.6]} 23. Ke3 {[%clk 0:00:11.6]}
23... Rhc8 {[%clk 0:01:13.4]} 24. Nd4 {[%clk 0:00:08.4]} 24... R8c3+ {[%clk
0:01:13]} 25. Kf4 {[%clk 0:00:09.5]} 25... Rc4 {[%clk 0:01:12.1]} 26. Rhd1
{[%clk 0:00:09.3]} 26... Nc6 {[%clk 0:01:11.2]} 0-1

[Event "*** Titled Tuesday Blitz"]
[Site "Chess.com"]
[Date "2019.07.02"]
[Round "10"]
[White "Th3ChessViking"]
[Black "IveBeenThroughPain"]
[Result "0-1"]
[WhiteElo "2459"]
[BlackElo "2319"]
[TimeControl "180+2"]
[EndTime "15:12:52 PDT"]
[Termination "IveBeenThroughPain won by checkmate"]

1. b4 {[%clk 0:03:01.9]} 1... a5 {[%clk 0:03:00.6]} 2. b5 {[%clk 0:03:02.4]}
2... c6 {[%clk 0:03:01.9]} 3. a4 {[%clk 0:03:02.6]} 3... e5 {[%clk 0:03:02.2]}
4. Bb2 {[%clk 0:03:03]} 4... d6 {[%clk 0:03:03.7]} 5. Nf3 {[%clk 0:03:04.1]}
5... Nf6 {[%clk 0:03:05.2]} 6. e3 {[%clk 0:03:05.3]} 6... Be7 {[%clk 0:03:06.8]}
7. d4 {[%clk 0:03:06.8]} 7... O-O {[%clk 0:03:08.5]} 8. dxe5 {[%clk 0:03:07.7]}
8... dxe5 {[%clk 0:03:10]} 9. Qxd8 {[%clk 0:03:09.4]} 9... Rxd8 {[%clk
0:03:11.1]} 10. Nxe5 {[%clk 0:03:04.5]} 10... Bb4+ {[%clk 0:03:11]} 11. c3
{[%clk 0:03:04.9]} 11... Bc5 {[%clk 0:03:10.9]} 12. Bc4 {[%clk 0:03:05.2]} 12...
Be6 {[%clk 0:03:10.8]} 13. Bxe6 {[%clk 0:03:05.6]} 13... fxe6 {[%clk 0:03:12.5]}
14. Nd2 {[%clk 0:02:59.3]} 14... cxb5 {[%clk 0:03:11.2]} 15. axb5 {[%clk
0:03:00.2]} 15... Nbd7 {[%clk 0:03:11.7]} 16. Nec4 {[%clk 0:02:56.5]} 16... b6
{[%clk 0:03:11.6]} 17. Ke2 {[%clk 0:02:57]} 17... Nd5 {[%clk 0:03:10.5]} 18. g3
{[%clk 0:02:55.1]} 18... N7f6 {[%clk 0:03:11.2]} 19. e4 {[%clk 0:02:52.6]} 19...
Nc7 {[%clk 0:03:10.7]} 20. h3 {[%clk 0:02:47.5]} 20... Nxb5 {[%clk 0:03:10.8]}
21. Rab1 {[%clk 0:02:41.4]} 21... a4 {[%clk 0:03:09.7]} 22. Ba1 {[%clk
0:02:41.8]} 22... Nc7 {[%clk 0:03:04.3]} 23. Nxb6 {[%clk 0:02:41.7]} 23... Rxd2+
{[%clk 0:02:37]} 24. Kxd2 {[%clk 0:02:37.1]} 24... Rd8+ {[%clk 0:02:38.9]} 25.
Kc2 {[%clk 0:02:37.8]} 25... Nxe4 {[%clk 0:02:39.5]} 26. Nxa4 {[%clk 0:02:35.1]}
26... Bxf2 {[%clk 0:02:38]} 27. Rhd1 {[%clk 0:02:34.1]} 27... Ra8 {[%clk
0:02:35.4]} 28. Rb7 {[%clk 0:02:29.4]} 28... Nd5 {[%clk 0:02:33.3]} 29. Kb3
{[%clk 0:02:21.5]} 29... Rxa4 {[%clk 0:02:22.7]} 30. Rxd5 {[%clk 0:02:10.6]}
30... Ra8 {[%clk 0:02:03.9]} 31. Rdd7 {[%clk 0:02:10.2]} 31... Nc5+ {[%clk
0:02:02.1]} 32. Kb2 {[%clk 0:02:02.8]} 32... Nxd7 {[%clk 0:01:58.8]} 33. Rxd7
{[%clk 0:02:03.3]} 33... Bxg3 {[%clk 0:02:00.5]} 34. Kb1 {[%clk 0:01:52.2]}
34... Be5 {[%clk 0:01:59.9]} 35. Re7 {[%clk 0:01:51.4]} 35... Ra6 {[%clk
0:02:01]} 36. Bb2 {[%clk 0:01:51.3]} 36... Bf6 {[%clk 0:02:01.9]} 37. Rb7 {[%clk
0:01:51.5]} 37... e5 {[%clk 0:02:02.8]} 38. Kc2 {[%clk 0:01:52.9]} 38... Rd6
{[%clk 0:02:01.5]} 39. c4 {[%clk 0:01:53.5]} 39... e4 {[%clk 0:02:01.3]} 40. Ba3
{[%clk 0:01:48.5]} 40... Rd3 {[%clk 0:01:59.5]} 41. Bb4 {[%clk 0:01:47.6]} 41...
Rxh3 {[%clk 0:01:57.1]} 42. c5 {[%clk 0:01:48.9]} 42... Rh2+ {[%clk 0:01:56.2]}
43. Kd1 {[%clk 0:01:49]} 43... e3 {[%clk 0:01:48.5]} 44. Be1 {[%clk 0:01:45.9]}
44... Ra2 {[%clk 0:01:35.5]} 45. c6 {[%clk 0:01:35.1]} 45... Bg5 {[%clk
0:01:21.5]} 46. Bc3 {[%clk 0:01:17.5]} 46... e2+ {[%clk 0:01:20.9]} 47. Ke1
{[%clk 0:01:11.3]} 47... Bh4# {[%clk 0:01:21.5]} 0-1

[Event "*** Titled Tuesday Blitz"]
[Site "Chess.com"]
[Date "2019.07.02"]
[Round "10"]
[White "AlexanderKing"]
[Black "Daniel-2003"]
[Result "1-0"]
[WhiteElo "2520"]
[BlackElo "2314"]
[TimeControl "180+2"]
[EndTime "15:12:56 PDT"]
[Termination "AlexanderKing won by checkmate"]

1. d4 {[%clk 0:03:01.9]} 1... Nf6 {[%clk 0:02:56.3]} 2. c4 {[%clk 0:03:02.7]}
2... e6 {[%clk 0:02:54.6]} 3. Nc3 {[%clk 0:03:03.8]} 3... Bb4 {[%clk 0:02:50]}
4. e3 {[%clk 0:03:04.6]} 4... b6 {[%clk 0:02:46.6]} 5. Ne2 {[%clk 0:03:05.4]}
5... Ba6 {[%clk 0:02:37.4]} 6. a3 {[%clk 0:03:06.3]} 6... Be7 {[%clk 0:02:32.9]}
7. Nf4 {[%clk 0:02:58.8]} 7... O-O {[%clk 0:02:31.2]} 8. e4 {[%clk 0:02:52.2]}
8... d6 {[%clk 0:02:26.6]} 9. Be3 {[%clk 0:01:48]} 9... e5 {[%clk 0:02:18.3]}
10. Nfd5 {[%clk 0:01:47.4]} 10... exd4 {[%clk 0:02:14.2]} 11. Bxd4 {[%clk
0:01:45.4]} 11... Nc6 {[%clk 0:02:16.1]} 12. Be3 {[%clk 0:01:35.2]} 12... Ne5
{[%clk 0:02:11.6]} 13. b3 {[%clk 0:01:05.3]} 13... Nxd5 {[%clk 0:02:07]} 14.
Nxd5 {[%clk 0:01:02.9]} 14... c6 {[%clk 0:01:59.3]} 15. Nxe7+ {[%clk 0:01:00.6]}
15... Qxe7 {[%clk 0:01:59.8]} 16. Be2 {[%clk 0:01:02.2]} 16... Rad8 {[%clk
0:01:52.3]} 17. O-O {[%clk 0:01:03]} 17... d5 {[%clk 0:01:47.1]} 18. exd5 {[%clk
0:01:00.5]} 18... cxd5 {[%clk 0:01:47.4]} 19. cxd5 {[%clk 0:01:00.8]} 19... Bxe2
{[%clk 0:01:46.5]} 20. Qxe2 {[%clk 0:01:02.7]} 20... Rxd5 {[%clk 0:01:47.9]} 21.
Rfd1 {[%clk 0:00:54.3]} 21... Rfd8 {[%clk 0:01:48.1]} 22. Rxd5 {[%clk
0:00:50.2]} 22... Rd6 {[%clk 0:01:49.2]} 23. Rxd6 {[%clk 0:00:21.5]} 23... Qxd6
{[%clk 0:01:49]} 24. Rd1 {[%clk 0:00:21.1]} 24... Qc7 {[%clk 0:01:41.9]} 25.
Bxb6 {[%clk 0:00:11.6]} 25... Qxb6 {[%clk 0:01:37.8]} 26. Qxe5 {[%clk
0:00:10.5]} 26... h6 {[%clk 0:01:36.5]} 27. Qe8+ {[%clk 0:00:09]} 27... Kh7
{[%clk 0:01:35.3]} 28. Qxf7 {[%clk 0:00:08.6]} 28... Qc5 {[%clk 0:01:30.2]} 29.
g4 {[%clk 0:00:05.5]} 29... h5 {[%clk 0:01:20.1]} 30. Qxh5+ {[%clk 0:00:05.4]}
30... Qxh5 {[%clk 0:01:20.6]} 31. gxh5 {[%clk 0:00:07.3]} 31... Kh6 {[%clk
0:01:22.1]} 32. Rd7 {[%clk 0:00:08]} 32... Kxh5 {[%clk 0:01:24]} 33. Rxg7 {[%clk
0:00:08.9]} 33... Kh4 {[%clk 0:01:25.4]} 34. Kg2 {[%clk 0:00:09]} 34... a5
{[%clk 0:01:27.3]} 35. Kf3 {[%clk 0:00:09.7]} 35... Kh3 {[%clk 0:01:29.2]} 36.
Rh7# {[%clk 0:00:10.4]} 1-0

[Event "*** Titled Tuesday Blitz"]
[Site "Chess.com"]
[Date "2019.07.02"]
[Round "10"]
[White "Er_is_geen_hoop_meer"]
[Black "Etoilegeniale"]
[Result "0-1"]
[WhiteElo "2340"]
[BlackElo "2525"]
[TimeControl "180+2"]
[EndTime "15:13:00 PDT"]
[Termination "Etoilegeniale won by checkmate"]

1. b4 {[%clk 0:03:01.8]} 1... d5 {[%clk 0:02:56.7]} 2. Bb2 {[%clk 0:03:02.5]}
2... Nf6 {[%clk 0:02:57.8]} 3. e3 {[%clk 0:03:02.9]} 3... Bf5 {[%clk 0:02:58.5]}
4. Be2 {[%clk 0:03:01.7]} 4... e6 {[%clk 0:02:59.4]} 5. a3 {[%clk 0:03:03.1]}
5... c5 {[%clk 0:02:57.3]} 6. b5 {[%clk 0:03:03.9]} 6... Bd6 {[%clk 0:02:56.7]}
7. g4 {[%clk 0:03:05.1]} 7... Bg6 {[%clk 0:02:52.2]} 8. h4 {[%clk 0:03:04.7]}
8... h6 {[%clk 0:02:45.5]} 9. Nh3 {[%clk 0:03:03.6]} 9... Nbd7 {[%clk
0:02:40.3]} 10. c4 {[%clk 0:02:50.9]} 10... e5 {[%clk 0:02:28.5]} 11. cxd5
{[%clk 0:02:44.8]} 11... Nxd5 {[%clk 0:02:28.1]} 12. Qb3 {[%clk 0:02:46.2]}
12... N7b6 {[%clk 0:02:15.7]} 13. a4 {[%clk 0:02:41.5]} 13... c4 {[%clk
0:02:12.8]} 14. Bxc4 {[%clk 0:02:35.6]} 14... Nxc4 {[%clk 0:02:13.3]} 15. Qxc4
{[%clk 0:02:37.5]} 15... Nb4 {[%clk 0:02:13.9]} 16. Bc3 {[%clk 0:01:28.9]} 16...
Rc8 {[%clk 0:01:30.4]} 17. Qb3 {[%clk 0:01:28.3]} 17... Bc2 {[%clk 0:01:28]} 18.
Qxb4 {[%clk 0:01:29]} 18... Bxb4 {[%clk 0:01:28.4]} 19. Bxb4 {[%clk 0:01:30.9]}
19... Qd5 {[%clk 0:01:20.9]} 20. Rh2 {[%clk 0:01:17.4]} 20... Bd3 {[%clk
0:01:10.3]} 21. Nc3 {[%clk 0:01:13]} 21... Qf3 {[%clk 0:01:10.4]} 22. Ra2 {[%clk
0:01:10.1]} 22... Qxg4 {[%clk 0:00:54.5]} 23. Rb2 {[%clk 0:01:10.3]} 23... e4
{[%clk 0:00:51.1]} 24. h5 {[%clk 0:00:56.6]} 24... f5 {[%clk 0:00:50.6]} 25. Bd6
{[%clk 0:00:50.8]} 25... Kf7 {[%clk 0:00:48.6]} 26. Bg3 {[%clk 0:00:44.5]} 26...
Rhd8 {[%clk 0:00:48.7]} 27. Nf4 {[%clk 0:00:45.7]} 27... Rxc3 {[%clk 0:00:44.9]}
28. dxc3 {[%clk 0:00:47.6]} 28... Bc2 {[%clk 0:00:45.5]} 29. Kf1 {[%clk
0:00:42.1]} 29... Qf3 {[%clk 0:00:42.1]} 30. Ng2 {[%clk 0:00:38.4]} 30... Rd1+
{[%clk 0:00:41.1]} 31. Ne1 {[%clk 0:00:39.9]} 31... Bd3+ {[%clk 0:00:41.9]} 32.
Kg1 {[%clk 0:00:41.2]} 32... Rxe1# {[%clk 0:00:42.6]} 0-1

[Event "*** Titled Tuesday Blitz"]
[Site "Chess.com"]
[Date "2019.07.02"]
[Round "10"]
[White "JuliaEfremova"]
[Black "SergeiAza"]
[Result "0-1"]
[WhiteElo "2011"]
[BlackElo "2802"]
[TimeControl "180+2"]
[EndTime "15:13:10 PDT"]
[Termination "SergeiAza won by resignation"]

1. d4 {[%clk 0:02:55.9]} 1... Nf6 {[%clk 0:02:59.4]} 2. Bf4 {[%clk 0:02:57.2]}
2... g6 {[%clk 0:02:55.4]} 3. Qd2 {[%clk 0:02:58]} 3... c5 {[%clk 0:02:50.8]} 4.
Nc3 {[%clk 0:02:55.5]} 4... cxd4 {[%clk 0:02:50.5]} 5. Qxd4 {[%clk 0:02:55.9]}
5... Nc6 {[%clk 0:02:51.5]} 6. Qd2 {[%clk 0:02:56.8]} 6... Bg7 {[%clk
0:02:31.9]} 7. O-O-O {[%clk 0:02:55.5]} 7... h5 {[%clk 0:02:13]} 8. f3 {[%clk
0:02:54.8]} 8... d6 {[%clk 0:02:13.1]} 9. e4 {[%clk 0:02:54.7]} 9... Be6 {[%clk
0:02:13.6]} 10. Kb1 {[%clk 0:02:54.4]} 10... Rc8 {[%clk 0:02:14.5]} 11. Nh3
{[%clk 0:02:51.6]} 11... Bxh3 {[%clk 0:02:07.6]} 12. gxh3 {[%clk 0:02:51.7]}
12... O-O {[%clk 0:02:09.1]} 13. Bh6 {[%clk 0:02:45]} 13... Bxh6 {[%clk
0:02:05.5]} 14. Qxh6 {[%clk 0:02:45.6]} 14... Ne5 {[%clk 0:02:02.3]} 15. Nd5
{[%clk 0:02:42.6]} 15... Nxd5 {[%clk 0:02:00.1]} 16. exd5 {[%clk 0:02:40.3]}
16... Qb6 {[%clk 0:01:49]} 17. f4 {[%clk 0:02:32.9]} 17... Qe3 {[%clk
0:01:43.8]} 18. Bd3 {[%clk 0:02:27.5]} 18... Nxd3 {[%clk 0:01:40.1]} 19. Rxd3
{[%clk 0:02:27.6]} 19... Qe2 {[%clk 0:01:40.2]} 20. Rc1 {[%clk 0:02:26.9]} 20...
Rxc2 {[%clk 0:01:39.8]} 21. Rxc2 {[%clk 0:02:21.4]} 21... Qxd3 {[%clk
0:01:40.6]} 22. Kc1 {[%clk 0:02:15.7]} 22... Qxd5 {[%clk 0:01:36.1]} 23. b3
{[%clk 0:02:11]} 23... Qf5 {[%clk 0:01:26]} 24. h4 {[%clk 0:02:02.1]} 24... Rc8
{[%clk 0:01:24.2]} 25. Rxc8+ {[%clk 0:02:02.4]} 25... Qxc8+ {[%clk 0:01:25]} 26.
Kb2 {[%clk 0:02:04]} 26... Qf5 {[%clk 0:01:25.8]} 27. Kc1 {[%clk 0:01:59.1]}
27... d5 {[%clk 0:01:26]} 28. Kd2 {[%clk 0:01:58.9]} 28... a5 {[%clk 0:01:24.2]}
29. a3 {[%clk 0:01:54.4]} 29... b5 {[%clk 0:01:24.1]} 30. Kc3 {[%clk 0:01:51.7]}
30... e6 {[%clk 0:01:19.6]} 31. Kd4 {[%clk 0:01:51.1]} 31... Qf6+ {[%clk
0:01:14.2]} 32. Kc5 {[%clk 0:01:49.8]} 32... Qc3+ {[%clk 0:01:14.3]} 33. Kxb5
{[%clk 0:01:49.2]} 33... Qxb3+ {[%clk 0:01:14.9]} 34. Kxa5 {[%clk 0:01:50.6]}
34... Qxa3+ {[%clk 0:01:15.7]} 35. Kb5 {[%clk 0:01:51.8]} 35... Qe7 {[%clk
0:01:11.1]} 36. Ka4 {[%clk 0:01:46.4]} 36... Qxh4 {[%clk 0:01:09.8]} 37. Kb4
{[%clk 0:01:45.2]} 37... Qxh2 {[%clk 0:01:04.3]} 38. Kc5 {[%clk 0:01:45.6]}
38... Qc2+ {[%clk 0:00:59.7]} 39. Kd4 {[%clk 0:01:45.8]} 39... Qf5 {[%clk
0:00:59.8]} 40. Kc5 {[%clk 0:01:45.7]} 40... Qf6 {[%clk 0:00:58.6]} 41. Kb4
{[%clk 0:01:44]} 41... Qd4+ {[%clk 0:00:57.8]} 42. Kb3 {[%clk 0:01:44.1]} 42...
Qe3+ {[%clk 0:00:57.9]} 43. Kc2 {[%clk 0:01:42.9]} 43... d4 {[%clk 0:00:58.7]}
44. Qg5 {[%clk 0:01:44.1]} 44... d3+ {[%clk 0:00:59.5]} 45. Kb3 {[%clk
0:01:40.6]} 45... d2+ {[%clk 0:00:59.1]} 46. Kc2 {[%clk 0:01:41.9]} 46... Qe2
{[%clk 0:00:57.3]} 47. Qd8+ {[%clk 0:01:42.4]} 47... Kh7 {[%clk 0:00:57.9]} 0-1

[Event "*** Titled Tuesday Blitz"]
[Site "Chess.com"]
[Date "2019.07.02"]
[Round "10"]
[White "ChainsOfFantasia"]
[Black "Alex_Terzi"]
[Result "0-1"]
[WhiteElo "2442"]
[BlackElo "2473"]
[TimeControl "180+2"]
[EndTime "15:13:11 PDT"]
[Termination "Alex_Terzi won by checkmate"]

1. d4 {[%clk 0:03:01.9]} 1... d5 {[%clk 0:02:56.2]} 2. Nf3 {[%clk 0:03:02.9]}
2... Nf6 {[%clk 0:02:55.9]} 3. Bf4 {[%clk 0:03:04.4]} 3... e6 {[%clk 0:02:55.5]}
4. e3 {[%clk 0:03:05.8]} 4... Bd6 {[%clk 0:02:56.6]} 5. Bg3 {[%clk 0:03:06.4]}
5... c5 {[%clk 0:02:52.6]} 6. c3 {[%clk 0:03:06.3]} 6... O-O {[%clk 0:02:53.5]}
7. Nbd2 {[%clk 0:03:05.4]} 7... Qc7 {[%clk 0:02:54.5]} 8. Bd3 {[%clk 0:02:56.8]}
8... Nbd7 {[%clk 0:02:55]} 9. Ne5 {[%clk 0:02:36.3]} 9... Nxe5 {[%clk
0:02:54.7]} 10. dxe5 {[%clk 0:02:34]} 10... Bxe5 {[%clk 0:02:55.9]} 11. Qf3
{[%clk 0:02:18.3]} 11... b6 {[%clk 0:02:31.7]} 12. O-O-O {[%clk 0:02:15.8]}
12... Bb7 {[%clk 0:02:31.2]} 13. e4 {[%clk 0:02:09.6]} 13... dxe4 {[%clk
0:02:19.5]} 14. Nxe4 {[%clk 0:02:11.5]} 14... Bxe4 {[%clk 0:01:51.9]} 15. Bxe4
{[%clk 0:02:13.4]} 15... Rad8 {[%clk 0:01:52.5]} 16. Bc2 {[%clk 0:02:06.7]}
16... Rxd1+ {[%clk 0:01:49.1]} 17. Rxd1 {[%clk 0:02:08.6]} 17... Bxg3 {[%clk
0:01:50]} 18. hxg3 {[%clk 0:02:08.8]} 18... Rd8 {[%clk 0:01:51.4]} 19. Rxd8+
{[%clk 0:02:07.9]} 19... Qxd8 {[%clk 0:01:53.3]} 20. Qb7 {[%clk 0:02:08.9]}
20... a5 {[%clk 0:01:49.7]} 21. a4 {[%clk 0:01:53.9]} 21... g6 {[%clk
0:01:50.1]} 22. Kb1 {[%clk 0:01:52.5]} 22... Kg7 {[%clk 0:01:50.6]} 23. Bb3
{[%clk 0:01:48.7]} 23... Qd6 {[%clk 0:01:50.7]} 24. Ka2 {[%clk 0:01:47.9]} 24...
h6 {[%clk 0:01:42.7]} 25. f3 {[%clk 0:01:41.2]} 25... Nd5 {[%clk 0:01:39.7]} 26.
g4 {[%clk 0:01:38.1]} 26... Nf4 {[%clk 0:01:38.2]} 27. g3 {[%clk 0:01:20.6]}
27... Nd3 {[%clk 0:01:33.7]} 28. Bc2 {[%clk 0:01:13.6]} 28... Ne5 {[%clk
0:01:28.3]} 29. Be4 {[%clk 0:01:10.4]} 29... Nc4 {[%clk 0:01:21.8]} 30. Qa6
{[%clk 0:00:50.5]} 30... Nd2 {[%clk 0:01:21.3]} 31. Ba8 {[%clk 0:00:44.5]} 31...
c4 {[%clk 0:01:10.1]} 32. f4 {[%clk 0:00:28.7]} 32... Qd3 {[%clk 0:01:08.3]} 33.
Be4 {[%clk 0:00:14.4]} 33... Qxe4 {[%clk 0:01:07.9]} 34. Qxb6 {[%clk 0:00:12]}
34... Qb1+ {[%clk 0:01:08.5]} 35. Ka3 {[%clk 0:00:13.6]} 35... Qa1# {[%clk
0:01:10]} 0-1